[Event "Titled Tuesday Blitz December 06 Late 2022"]
[White "Aguilar, Juan"]
[Black "Bortnyk, Olexandr"]
[WhiteFideId "3800091"]
[BlackFideId "14120828"]
[WhiteElo "2539"]
[BlackElo "2723"]
[Result "0-1"]
[Round "01"]
[TimeControl "180+1"]
[Date "2022.12.06"]
[WhiteClock "0:00:03"]
[BlackClock "0:00:11"]

1. d4 {[%clk 0:02:58]}  d6 {[%clk 0:02:58]} 2. c4 {[%clk 0:02:55]}  e5 {[%clk 0:02:57]} 3. Nf3 {[%clk 0:02:53]}  e4 {[%clk 0:02:57]} 4. Ng5 {[%clk 0:02:52]}  f5 {[%clk 0:02:58]} 5. Nh3 {[%clk 0:02:50]}  Nf6 {[%clk 0:02:58]} 6. Nf4 {[%clk 0:02:49]}  g6 {[%clk 0:02:57]} 7. e3 {[%clk 0:02:49]}  Bh6 {[%clk 0:02:55]} 8. g3 {[%clk 0:02:46]}  O-O {[%clk 0:02:54]} 9. Nc3 {[%clk 0:02:45]}  c6 {[%clk 0:02:55]} 10. d5 {[%clk 0:02:42]}  Qe7 {[%clk 0:02:54]} 11. Bd2 {[%clk 0:02:31]}  Nbd7 {[%clk 0:02:53]} 12. Ne6 {[%clk 0:02:21]}  Ne5 {[%clk 0:02:49]} 13. Nxf8 {[%clk 0:02:19]}  Nf3+ {[%clk 0:02:49]} 14. Ke2 {[%clk 0:02:18]}  Kxf8 {[%clk 0:02:34]} 15. h3 {[%clk 0:02:03]}  cxd5 {[%clk 0:02:26]} 16. cxd5 {[%clk 0:02:03]}  b6 {[%clk 0:02:23]} 17. a4 {[%clk 0:02:01]}  Ba6+ {[%clk 0:02:22]} 18. Nb5 {[%clk 0:02:00]}  Nxd5 {[%clk 0:02:22]} 19. Qb3 {[%clk 0:02:00]}  Qe6 {[%clk 0:02:07]} 20. Ra3 {[%clk 0:01:51]}  Rc8 {[%clk 0:01:55]} 21. Bg2 {[%clk 0:01:44]}  Rc4 {[%clk 0:01:13]} 22. Rc1 {[%clk 0:01:30]}  Rxc1 {[%clk 0:00:22]} 23. Bxc1 {[%clk 0:01:30]}  Bg7 {[%clk 0:00:12]} 24. Bd2 {[%clk 0:01:13]}  Bf6 {[%clk 0:00:04]} 25. Bb4 {[%clk 0:00:44]}  Be7 {[%clk 0:00:02]} 26. Kd1 {[%clk 0:00:37]}  Qe5 {[%clk 0:00:02]} 27. Bxf3 {[%clk 0:00:35]}  exf3 {[%clk 0:00:03]} 28. Bc3 {[%clk 0:00:32]}  Qe4 {[%clk 0:00:03]} 29. Qc2 {[%clk 0:00:28]}  h5 {[%clk 0:00:03]} 30. Qxe4 {[%clk 0:00:27]}  fxe4 {[%clk 0:00:04]} 31. Nxa7 {[%clk 0:00:20]}  Nxe3+ {[%clk 0:00:03]} 32. Kc1 {[%clk 0:00:17]}  Nc4 {[%clk 0:00:03]} 33. Rb3 {[%clk 0:00:14]}  e3 {[%clk 0:00:04]} 34. Be1 {[%clk 0:00:13]}  Bg5 {[%clk 0:00:03]} 35. fxe3 {[%clk 0:00:10]}  Bxe3+ {[%clk 0:00:04]} 36. Kd1 {[%clk 0:00:11]}  Ke8 {[%clk 0:00:02]} 37. Nb5 {[%clk 0:00:09]}  f2 {[%clk 0:00:02]} 38. Bxf2 {[%clk 0:00:07]}  Bxb5 {[%clk 0:00:02]} 39. axb5 {[%clk 0:00:06]}  Bxf2 {[%clk 0:00:03]} 40. Ke2 {[%clk 0:00:06]}  Bc5 {[%clk 0:00:03]} 41. Rc3 {[%clk 0:00:06]}  Nxb2 {[%clk 0:00:03]} 42. Rf3 {[%clk 0:00:05]}  Nc4 {[%clk 0:00:03]} 43. Rf6 {[%clk 0:00:05]}  Ne5 {[%clk 0:00:03]} 44. g4 {[%clk 0:00:03]}  hxg4 {[%clk 0:00:03]} 45. hxg4 {[%clk 0:00:04]}  Ke7 {[%clk 0:00:04]} 46. g5 {[%clk 0:00:04]}  Ba3 {[%clk 0:00:04]} 47. Rf1 {[%clk 0:00:04]}  Ke6 {[%clk 0:00:04]} 48. Ke3 {[%clk 0:00:04]}  Kd5 {[%clk 0:00:05]} 49. Rd1+ {[%clk 0:00:04]}  Ke6 {[%clk 0:00:03]} 50. Ke4 {[%clk 0:00:04]}  Bc5 {[%clk 0:00:03]} 51. Ra1 {[%clk 0:00:04]}  Nf7 {[%clk 0:00:03]} 52. Kf4 {[%clk 0:00:04]}  Bd4 {[%clk 0:00:02]} 53. Ra8 {[%clk 0:00:03]}  Be5+ {[%clk 0:00:03]} 54. Kg4 {[%clk 0:00:03]}  Bd4 {[%clk 0:00:02]} 55. Rb8 {[%clk 0:00:03]}  Ne5+ {[%clk 0:00:02]} 56. Kf4 {[%clk 0:00:03]}  Kd5 {[%clk 0:00:03]} 57. Rf8 {[%clk 0:00:02]}  Bc5 {[%clk 0:00:04]} 58. Rf6 {[%clk 0:00:02]}  Kc4 {[%clk 0:00:05]} 59. Ke4 {[%clk 0:00:02]}  Kxb5 {[%clk 0:00:05]} 60. Kd5 {[%clk 0:00:02]}  Ka4 {[%clk 0:00:06]} 61. Rf1 {[%clk 0:00:01]}  b5 {[%clk 0:00:06]} 62. Ra1+ {[%clk 0:00:02]}  Kb4 {[%clk 0:00:06]} 63. Rb1+ {[%clk 0:00:02]}  Ka5 {[%clk 0:00:06]} 64. Ra1+ {[%clk 0:00:02]}  Kb6 {[%clk 0:00:07]} 65. Rb1 {[%clk 0:00:03]}  b4 {[%clk 0:00:08]} 66. Ke6 {[%clk 0:00:03]}  Kb5 {[%clk 0:00:09]} 67. Kf6 {[%clk 0:00:03]}  Kc4 {[%clk 0:00:09]} 68. Rh1 {[%clk 0:00:03]}  b3 {[%clk 0:00:10]} 69. Rc1+ {[%clk 0:00:03]}  Kd3 {[%clk 0:00:10]} 70. Ke6 {[%clk 0:00:03]}  b2 {[%clk 0:00:10]} 71. Rb1 {[%clk 0:00:03]}  Kc2 {[%clk 0:00:10]} 72. Re1 {[%clk 0:00:03]}  b1=Q {[%clk 0:00:11]} 0-1


[Site "https://www.chess.com"]

[Event "Titled Tuesday Blitz December 06 Late 2022"]
[White "Alex_Sahakyan2006"]
[Black "Onslow, Alfie"]
[BlackFideId "436976"]
[WhiteElo "2599"]
[BlackElo "2015"]
[Result "1-0"]
[Round "01"]
[TimeControl "180+1"]
[Date "2022.12.07"]
[WhiteClock "0:00:20"]
[BlackClock "0:00:03"]

1. e4 {[%clk 0:02:59]}  g6 {[%clk 0:02:45]} 2. Nc3 {[%clk 0:02:58]}  Bg7 {[%clk 0:02:45]} 3. d4 {[%clk 0:02:58]}  c6 {[%clk 0:02:45]} 4. g3 {[%clk 0:02:54]}  d5 {[%clk 0:02:45]} 5. e5 {[%clk 0:02:49]}  h5 {[%clk 0:02:39]} 6. h4 {[%clk 0:02:42]}  Nh6 {[%clk 0:02:32]} 7. Bg2 {[%clk 0:02:41]}  Bg4 {[%clk 0:02:28]} 8. Nge2 {[%clk 0:02:40]}  Nd7 {[%clk 0:02:20]} 9. Bg5 {[%clk 0:02:38]}  Qb6 {[%clk 0:02:17]} 10. Qd2 {[%clk 0:02:34]}  Bxe2 {[%clk 0:02:04]} 11. Nxe2 {[%clk 0:02:30]}  e6 {[%clk 0:02:00]} 12. c3 {[%clk 0:02:21]}  c5 {[%clk 0:01:58]} 13. O-O {[%clk 0:02:20]}  c4 {[%clk 0:01:38]} 14. Rab1 {[%clk 0:02:15]}  Rc8 {[%clk 0:01:33]} 15. b3 {[%clk 0:02:13]}  Qa6 {[%clk 0:01:34]} 16. Rb2 {[%clk 0:01:57]}  b5 {[%clk 0:01:33]} 17. Rfb1 {[%clk 0:01:53]}  Nf5 {[%clk 0:01:27]} 18. bxc4 {[%clk 0:01:49]}  bxc4 {[%clk 0:01:28]} 19. Bh3 {[%clk 0:01:39]}  O-O {[%clk 0:01:19]} 20. Bxf5 {[%clk 0:01:37]}  exf5 {[%clk 0:01:20]} 21. Rb7 {[%clk 0:01:28]}  Nb6 {[%clk 0:01:17]} 22. Re7 {[%clk 0:01:25]}  Rfe8 {[%clk 0:01:02]} 23. Rxe8+ {[%clk 0:01:15]}  Rxe8 {[%clk 0:01:03]} 24. Nf4 {[%clk 0:01:09]}  Qa4 {[%clk 0:00:45]} 25. Re1 {[%clk 0:00:58]}  Qc6 {[%clk 0:00:30]} 26. Qb2 {[%clk 0:00:46]}  Bf8 {[%clk 0:00:29]} 27. e6 {[%clk 0:00:37]}  fxe6 {[%clk 0:00:25]} 28. Nxg6 {[%clk 0:00:37]}  Nd7 {[%clk 0:00:14]} 29. Qe2 {[%clk 0:00:33]}  e5 {[%clk 0:00:13]} 30. Qxh5 {[%clk 0:00:33]}  Bg7 {[%clk 0:00:14]} 31. Ne7+ {[%clk 0:00:28]}  Rxe7 {[%clk 0:00:14]} 32. Bxe7 {[%clk 0:00:29]}  e4 {[%clk 0:00:10]} 33. Qxf5 {[%clk 0:00:27]}  Nf6 {[%clk 0:00:06]} 34. Bxf6 {[%clk 0:00:25]}  Bxf6 {[%clk 0:00:07]} 35. Rb1 {[%clk 0:00:25]}  Kf7 {[%clk 0:00:06]} 36. Rb8 {[%clk 0:00:21]}  Qa4 {[%clk 0:00:03]} 37. Rb7+ {[%clk 0:00:20]}  Kg8 {[%clk 0:00:04]} 38. Qg6+ {[%clk 0:00:20]}  Kh8 {[%clk 0:00:03]} 39. Qh7# {[%clk 0:00:20]} 1-0


[Site "https://www.chess.com"]

[Event "Titled Tuesday Blitz December 06 Late 2022"]
[White "Ankerst, Mihael"]
[Black "Godzwon, Iwo"]
[WhiteFideId "14602369"]
[BlackFideId "21802483"]
[WhiteElo "2362"]
[BlackElo "2284"]
[Result "1/2-1/2"]
[Round "01"]
[TimeControl "180+1"]
[Date "2022.12.07"]
[WhiteClock "0:00:15"]
[BlackClock "0:00:14"]

1. e4 {[%clk 0:02:59]}  c5 {[%clk 0:02:58]} 2. Nf3 {[%clk 0:02:59]}  Nc6 {[%clk 0:02:57]} 3. d4 {[%clk 0:02:59]}  cxd4 {[%clk 0:02:57]} 4. Nxd4 {[%clk 0:02:59]}  Qb6 {[%clk 0:02:58]} 5. Nb3 {[%clk 0:02:58]}  Nf6 {[%clk 0:02:57]} 6. Bd3 {[%clk 0:02:59]}  e6 {[%clk 0:02:57]} 7. Qf3 {[%clk 0:02:59]}  Be7 {[%clk 0:02:48]} 8. Qg3 {[%clk 0:02:58]}  O-O {[%clk 0:02:47]} 9. Bh6 {[%clk 0:02:57]}  Ne8 {[%clk 0:02:45]} 10. Be3 {[%clk 0:02:57]}  Qc7 {[%clk 0:02:44]} 11. Qxc7 {[%clk 0:02:56]}  Nxc7 {[%clk 0:02:45]} 12. c4 {[%clk 0:02:48]}  Nb4 {[%clk 0:02:40]} 13. Ke2 {[%clk 0:02:48]}  b6 {[%clk 0:02:39]} 14. Nc3 {[%clk 0:02:48]}  Bb7 {[%clk 0:02:38]} 15. Bb1 {[%clk 0:02:47]}  Ba6 {[%clk 0:02:35]} 16. Nd2 {[%clk 0:02:46]}  Rac8 {[%clk 0:02:34]} 17. Rc1 {[%clk 0:02:19]}  Bf6 {[%clk 0:02:30]} 18. a3 {[%clk 0:01:41]}  Nc6 {[%clk 0:02:29]} 19. b4 {[%clk 0:01:42]}  Bb7 {[%clk 0:02:22]} 20. f4 {[%clk 0:01:39]}  d6 {[%clk 0:02:21]} 21. Nf3 {[%clk 0:01:36]}  Rfd8 {[%clk 0:02:20]} 22. Bd3 {[%clk 0:01:35]}  Ne7 {[%clk 0:02:19]} 23. g4 {[%clk 0:01:32]}  g6 {[%clk 0:01:54]} 24. g5 {[%clk 0:01:32]}  Bg7 {[%clk 0:01:55]} 25. Rab1 {[%clk 0:01:33]}  f5 {[%clk 0:01:34]} 26. gxf6 {[%clk 0:01:19]}  Bxf6 {[%clk 0:01:35]} 27. h4 {[%clk 0:01:16]}  d5 {[%clk 0:01:30]} 28. e5 {[%clk 0:01:16]}  Bg7 {[%clk 0:01:30]} 29. cxd5 {[%clk 0:01:13]}  Nexd5 {[%clk 0:01:29]} 30. Nxd5 {[%clk 0:01:11]}  Nxd5 {[%clk 0:01:29]} 31. Bd2 {[%clk 0:01:11]}  Bh6 {[%clk 0:01:25]} 32. Ng5 {[%clk 0:01:11]}  Bxg5 {[%clk 0:01:20]} 33. hxg5 {[%clk 0:01:12]}  Ne7 {[%clk 0:01:20]} 34. b5 {[%clk 0:01:04]}  Bg2 {[%clk 0:00:55]} 35. Rxc8 {[%clk 0:00:47]}  Rxc8 {[%clk 0:00:45]} 36. Rc1 {[%clk 0:00:47]}  Rxc1 {[%clk 0:00:40]} 37. Bxc1 {[%clk 0:00:48]}  Bh3 {[%clk 0:00:40]} 38. Kf3 {[%clk 0:00:45]}  Bf5 {[%clk 0:00:40]} 39. Bc4 {[%clk 0:00:45]}  Kf7 {[%clk 0:00:40]} 40. Bd2 {[%clk 0:00:44]}  Ke8 {[%clk 0:00:40]} 41. Bb4 {[%clk 0:00:44]}  Nd5 {[%clk 0:00:37]} 42. Bd6 {[%clk 0:00:44]}  Kd7 {[%clk 0:00:35]} 43. Bb8 {[%clk 0:00:44]}  Kc8 {[%clk 0:00:35]} 44. Bd6 {[%clk 0:00:43]}  Kb7 {[%clk 0:00:21]} 45. Bf8 {[%clk 0:00:43]}  Kc7 {[%clk 0:00:20]} 46. Bd6+ {[%clk 0:00:43]}  Kd7 {[%clk 0:00:20]} 47. Bb8 {[%clk 0:00:35]}  Kc8 {[%clk 0:00:20]} 48. Bd6 {[%clk 0:00:29]}  Nc3 {[%clk 0:00:17]} 49. Bb4 {[%clk 0:00:26]}  Ne4 {[%clk 0:00:15]} 50. Bd3 {[%clk 0:00:23]}  Nxg5+ {[%clk 0:00:08]} 51. fxg5 {[%clk 0:00:18]}  Bxd3 {[%clk 0:00:09]} 52. Ke3 {[%clk 0:00:14]}  Bxb5 {[%clk 0:00:08]} 53. Kd4 {[%clk 0:00:15]}  Bc6 {[%clk 0:00:08]} 54. Bf8 {[%clk 0:00:15]}  Kb7 {[%clk 0:00:08]} 55. Kc3 {[%clk 0:00:16]}  Ka6 {[%clk 0:00:09]} 56. Kb4 {[%clk 0:00:17]}  Kb7 {[%clk 0:00:08]} 57. Bd6 {[%clk 0:00:17]}  Bd5 {[%clk 0:00:09]} 58. Kc3 {[%clk 0:00:18]}  Kc6 {[%clk 0:00:09]} 59. Kb4 {[%clk 0:00:18]}  a5+ {[%clk 0:00:09]} 60. Kc3 {[%clk 0:00:18]}  Kb5 {[%clk 0:00:09]} 61. Be7 {[%clk 0:00:18]}  Bf3 {[%clk 0:00:10]} 62. Bd8 {[%clk 0:00:18]}  Be4 {[%clk 0:00:09]} 63. Be7 {[%clk 0:00:18]}  Bf5 {[%clk 0:00:10]} 64. Bd8 {[%clk 0:00:19]}  Ka4 {[%clk 0:00:10]} 65. Bxb6 {[%clk 0:00:19]}  h5 {[%clk 0:00:10]} 66. gxh6 {[%clk 0:00:18]}  g5 {[%clk 0:00:10]} 67. Kd4 {[%clk 0:00:15]}  g4 {[%clk 0:00:11]} 68. Ke3 {[%clk 0:00:15]}  Kxa3 {[%clk 0:00:10]} 69. Bxa5 {[%clk 0:00:14]}  Kb3 {[%clk 0:00:11]} 70. Bc7 {[%clk 0:00:14]}  Kc4 {[%clk 0:00:11]} 71. Kf4 {[%clk 0:00:15]}  Kd5 {[%clk 0:00:12]} 72. Bd6 {[%clk 0:00:15]}  Kd4 {[%clk 0:00:12]} 73. Kg3 {[%clk 0:00:15]}  Ke3 {[%clk 0:00:12]} 74. Bc7 {[%clk 0:00:15]}  Ke4 {[%clk 0:00:12]} 75. Bd6 {[%clk 0:00:15]}  Ke3 {[%clk 0:00:13]} 76. Bc7 {[%clk 0:00:16]}  Ke4 {[%clk 0:00:14]} 77. Bb8 {[%clk 0:00:15]}  Ke3 {[%clk 0:00:14]} 78. Bc7 {[%clk 0:00:15]} 1/2-1/2


[Site "https://www.chess.com"]

[Event "Titled Tuesday Blitz December 06 Late 2022"]
[White "Battlecruiser_Operational"]
[Black "Sellitti, Federico"]
[BlackFideId "821829"]
[WhiteElo "2275"]
[BlackElo "2606"]
[Result "1-0"]
[Round "01"]
[TimeControl "180+1"]
[Date "2022.12.07"]
[WhiteClock "0:00:09"]
[BlackClock "0:00:04"]

1. d4 {[%clk 0:03:00]}  d5 {[%clk 0:02:59]} 2. c4 {[%clk 0:03:00]}  Nc6 {[%clk 0:02:59]} 3. Nc3 {[%clk 0:03:00]}  Nf6 {[%clk 0:02:59]} 4. Nf3 {[%clk 0:03:00]}  Bg4 {[%clk 0:02:58]} 5. Bf4 {[%clk 0:02:45]}  Bxf3 {[%clk 0:02:33]} 6. exf3 {[%clk 0:02:40]}  e6 {[%clk 0:02:34]} 7. c5 {[%clk 0:02:36]}  Be7 {[%clk 0:02:24]} 8. Bb5 {[%clk 0:02:34]}  O-O {[%clk 0:02:23]} 9. O-O {[%clk 0:02:33]}  a6 {[%clk 0:02:08]} 10. Ba4 {[%clk 0:02:31]}  Na5 {[%clk 0:02:00]} 11. Re1 {[%clk 0:02:16]}  b6 {[%clk 0:01:49]} 12. b4 {[%clk 0:02:02]}  Nc4 {[%clk 0:01:48]} 13. Bc6 {[%clk 0:01:57]}  Rb8 {[%clk 0:01:24]} 14. Rb1 {[%clk 0:01:49]}  bxc5 {[%clk 0:01:04]} 15. bxc5 {[%clk 0:01:43]}  Nh5 {[%clk 0:01:03]} 16. Be3 {[%clk 0:01:33]}  g6 {[%clk 0:01:00]} 17. Qa4 {[%clk 0:01:29]}  a5 {[%clk 0:00:54]} 18. Rb5 {[%clk 0:01:22]}  Rxb5 {[%clk 0:00:51]} 19. Bxb5 {[%clk 0:01:20]}  Nxe3 {[%clk 0:00:46]} 20. fxe3 {[%clk 0:01:21]}  Bh4 {[%clk 0:00:45]} 21. Re2 {[%clk 0:01:17]}  Ng3 {[%clk 0:00:29]} 22. hxg3 {[%clk 0:00:43]}  Bxg3 {[%clk 0:00:30]} 23. Nd1 {[%clk 0:00:43]}  Qh4 {[%clk 0:00:31]} 24. Nf2 {[%clk 0:00:43]}  Qh2+ {[%clk 0:00:30]} 25. Kf1 {[%clk 0:00:44]}  h5 {[%clk 0:00:30]} 26. Rb2 {[%clk 0:00:32]}  h4 {[%clk 0:00:30]} 27. Qd1 {[%clk 0:00:18]}  h3 {[%clk 0:00:20]} 28. gxh3 {[%clk 0:00:16]}  Rb8 {[%clk 0:00:15]} 29. a4 {[%clk 0:00:16]}  c6 {[%clk 0:00:14]} 30. Qe1 {[%clk 0:00:14]}  cxb5 {[%clk 0:00:12]} 31. axb5 {[%clk 0:00:15]}  Bxf2 {[%clk 0:00:10]} 32. Qxf2 {[%clk 0:00:16]}  Qxh3+ {[%clk 0:00:10]} 33. Qg2 {[%clk 0:00:15]}  Qh6 {[%clk 0:00:09]} 34. Ke2 {[%clk 0:00:14]}  a4 {[%clk 0:00:09]} 35. Qg3 {[%clk 0:00:13]}  Ra8 {[%clk 0:00:05]} 36. Rb1 {[%clk 0:00:14]}  a3 {[%clk 0:00:04]} 37. b6 {[%clk 0:00:14]}  a2 {[%clk 0:00:04]} 38. Ra1 {[%clk 0:00:14]}  Qf8 {[%clk 0:00:04]} 39. b7 {[%clk 0:00:11]}  Rb8 {[%clk 0:00:05]} 40. c6 {[%clk 0:00:11]}  Qb4 {[%clk 0:00:03]} 41. Qxb8+ {[%clk 0:00:11]}  Kh7 {[%clk 0:00:03]} 42. Rxa2 {[%clk 0:00:11]}  Qc4+ {[%clk 0:00:02]} 43. Ke1 {[%clk 0:00:11]}  Qxa2 {[%clk 0:00:03]} 44. Qh2+ {[%clk 0:00:10]}  Kg7 {[%clk 0:00:04]} 45. Qxa2 {[%clk 0:00:09]} 1-0


[Site "https://www.chess.com"]

[Event "Titled Tuesday Blitz December 06 Late 2022"]
[White "Bogaudinov, Rushan"]
[Black "Kravtsiv, Martyn"]
[WhiteFideId "4129288"]
[BlackFideId "14113147"]
[WhiteElo "2028"]
[BlackElo "2695"]
[Result "0-1"]
[Round "01"]
[TimeControl "180+1"]
[Date "2022.12.06"]
[WhiteClock "0:00:01"]
[BlackClock "0:00:58"]

1. a3 {[%clk 0:02:59]}  e5 {[%clk 0:02:58]} 2. e3 {[%clk 0:02:58]}  d5 {[%clk 0:02:58]} 3. d4 {[%clk 0:02:56]}  e4 {[%clk 0:02:54]} 4. c4 {[%clk 0:02:55]}  c6 {[%clk 0:02:54]} 5. Nc3 {[%clk 0:02:55]}  Nf6 {[%clk 0:02:53]} 6. b4 {[%clk 0:02:55]}  Be6 {[%clk 0:02:48]} 7. c5 {[%clk 0:02:52]}  Nbd7 {[%clk 0:02:47]} 8. Nge2 {[%clk 0:02:46]}  Nh5 {[%clk 0:02:43]} 9. Ng3 {[%clk 0:02:39]}  Nxg3 {[%clk 0:02:42]} 10. hxg3 {[%clk 0:02:40]}  g6 {[%clk 0:02:42]} 11. Be2 {[%clk 0:02:38]}  Bg7 {[%clk 0:02:42]} 12. a4 {[%clk 0:02:36]}  O-O {[%clk 0:02:41]} 13. b5 {[%clk 0:02:35]}  f5 {[%clk 0:02:15]} 14. a5 {[%clk 0:02:30]}  Rf7 {[%clk 0:02:06]} 15. Qb3 {[%clk 0:02:23]}  Qe8 {[%clk 0:02:00]} 16. a6 {[%clk 0:02:19]}  Nxc5 {[%clk 0:01:57]} 17. Qc2 {[%clk 0:02:03]}  Nd3+ {[%clk 0:01:52]} 18. Bxd3 {[%clk 0:02:02]}  exd3 {[%clk 0:01:53]} 19. Qxd3 {[%clk 0:02:00]}  c5 {[%clk 0:01:46]} 20. dxc5 {[%clk 0:01:44]}  d4 {[%clk 0:01:45]} 21. axb7 {[%clk 0:01:40]}  Rxb7 {[%clk 0:01:45]} 22. c6 {[%clk 0:01:40]}  Rf7 {[%clk 0:01:45]} 23. Ne2 {[%clk 0:01:16]}  dxe3 {[%clk 0:01:44]} 24. Rb1 {[%clk 0:01:08]}  Rd8 {[%clk 0:01:43]} 25. Qxe3 {[%clk 0:01:01]}  Bc4 {[%clk 0:01:44]} 26. Qxe8+ {[%clk 0:01:00]}  Rxe8 {[%clk 0:01:43]} 27. Be3 {[%clk 0:01:00]}  g5 {[%clk 0:01:35]} 28. Rb4 {[%clk 0:00:51]}  Bxe2 {[%clk 0:01:34]} 29. Kxe2 {[%clk 0:00:51]}  f4 {[%clk 0:01:34]} 30. gxf4 {[%clk 0:00:49]}  gxf4 {[%clk 0:01:34]} 31. Rh3 {[%clk 0:00:45]}  fxe3 {[%clk 0:01:15]} 32. Rxe3 {[%clk 0:00:45]}  Rxe3+ {[%clk 0:01:15]} 33. fxe3 {[%clk 0:00:44]}  Be5 {[%clk 0:01:16]} 34. Kd3 {[%clk 0:00:32]}  Bc7 {[%clk 0:01:15]} 35. Rg4+ {[%clk 0:00:27]}  Kf8 {[%clk 0:01:15]} 36. e4 {[%clk 0:00:24]}  Ke7 {[%clk 0:01:14]} 37. Kd4 {[%clk 0:00:20]}  Ke6 {[%clk 0:01:13]} 38. Rh4 {[%clk 0:00:18]}  Bb6+ {[%clk 0:01:12]} 39. Kc4 {[%clk 0:00:18]}  Rg7 {[%clk 0:01:09]} 40. Rh6+ {[%clk 0:00:16]}  Ke5 {[%clk 0:01:09]} 41. Rh2 {[%clk 0:00:12]}  Kxe4 {[%clk 0:01:08]} 42. Rh4+ {[%clk 0:00:12]}  Ke5 {[%clk 0:01:06]} 43. Rh5+ {[%clk 0:00:12]}  Ke6 {[%clk 0:01:04]} 44. Rh6+ {[%clk 0:00:12]}  Ke5 {[%clk 0:01:02]} 45. Rh5+ {[%clk 0:00:12]}  Kd6 {[%clk 0:01:03]} 46. Rh6+ {[%clk 0:00:12]}  Kc7 {[%clk 0:01:03]} 47. Rh4 {[%clk 0:00:09]}  Be3 {[%clk 0:01:01]} 48. g4 {[%clk 0:00:09]}  Kb6 {[%clk 0:00:59]} 49. Kd3 {[%clk 0:00:07]}  Bc5 {[%clk 0:00:59]} 50. Kc4 {[%clk 0:00:04]}  Bf2 {[%clk 0:00:59]} 51. Rh2 {[%clk 0:00:01]}  Rxg4+ {[%clk 0:00:59]} 52. Kd5 {[%clk 0:00:01]}  Bh4 {[%clk 0:00:58]} 0-1


[Site "https://www.chess.com"]

[Event "Titled Tuesday Blitz December 06 Late 2022"]
[White "Bok, Benjamin"]
[Black "Kaplan, Avi Harrison"]
[WhiteFideId "1017063"]
[BlackFideId "30934559"]
[WhiteElo "2658"]
[BlackElo "1983"]
[Result "1-0"]
[Round "01"]
[TimeControl "180+1"]
[Date "2022.12.06"]
[WhiteClock "0:00:59"]
[BlackClock "0:00:41"]

1. d4 {[%clk 0:03:00]}  Nf6 {[%clk 0:02:57]} 2. c4 {[%clk 0:03:00]}  c5 {[%clk 0:02:56]} 3. Nf3 {[%clk 0:03:00]}  e6 {[%clk 0:02:55]} 4. g3 {[%clk 0:03:00]}  d5 {[%clk 0:02:42]} 5. cxd5 {[%clk 0:02:59]}  Nxd5 {[%clk 0:02:37]} 6. Bg2 {[%clk 0:02:59]}  Nc6 {[%clk 0:02:36]} 7. O-O {[%clk 0:02:58]}  Be7 {[%clk 0:02:36]} 8. dxc5 {[%clk 0:02:57]}  Bxc5 {[%clk 0:02:34]} 9. a3 {[%clk 0:02:42]}  O-O {[%clk 0:02:20]} 10. b4 {[%clk 0:02:41]}  Be7 {[%clk 0:02:21]} 11. e4 {[%clk 0:02:40]}  Nf6 {[%clk 0:02:16]} 12. Qe2 {[%clk 0:02:38]}  Qc7 {[%clk 0:02:03]} 13. Bb2 {[%clk 0:02:31]}  a6 {[%clk 0:02:01]} 14. Nbd2 {[%clk 0:02:29]}  e5 {[%clk 0:01:54]} 15. Rac1 {[%clk 0:02:22]}  Qb8 {[%clk 0:01:40]} 16. Nc4 {[%clk 0:02:21]}  Nd7 {[%clk 0:01:40]} 17. Rfd1 {[%clk 0:02:18]}  Rd8 {[%clk 0:01:39]} 18. Bh3 {[%clk 0:02:14]}  f6 {[%clk 0:01:34]} 19. Be6+ {[%clk 0:01:50]}  Kh8 {[%clk 0:01:33]} 20. Nh4 {[%clk 0:01:50]}  b5 {[%clk 0:01:30]} 21. Ne3 {[%clk 0:01:41]}  Nf8 {[%clk 0:01:23]} 22. Rxd8 {[%clk 0:01:29]}  Bxd8 {[%clk 0:01:16]} 23. Bd5 {[%clk 0:01:03]}  Bb7 {[%clk 0:01:16]} 24. Bxc6 {[%clk 0:01:03]}  Bxc6 {[%clk 0:01:10]} 25. Rxc6 {[%clk 0:01:03]}  Qb7 {[%clk 0:01:10]} 26. Qc2 {[%clk 0:01:03]}  Bb6 {[%clk 0:01:04]} 27. Nd5 {[%clk 0:01:03]}  Ba7 {[%clk 0:00:55]} 28. Rc7 {[%clk 0:01:03]}  Qb8 {[%clk 0:00:56]} 29. Qc6 {[%clk 0:01:03]}  Qd8 {[%clk 0:00:48]} 30. Nf5 {[%clk 0:00:59]}  g6 {[%clk 0:00:41]} 31. Nh6 {[%clk 0:00:59]} 1-0


[Site "https://www.chess.com"]

[Event "Titled Tuesday Blitz December 06 Late 2022"]
[White "Bryant, Todd"]
[Black "Xu, Grant"]
[WhiteFideId "2031299"]
[BlackFideId "2052318"]
[WhiteElo "2320"]
[BlackElo "2186"]
[Result "0-1"]
[Round "01"]
[TimeControl "180+1"]
[Date "2022.12.07"]
[WhiteClock "0:00:10"]
[BlackClock "0:01:38"]

1. e4 {[%clk 0:02:56]}  e6 {[%clk 0:03:00]} 2. d4 {[%clk 0:02:54]}  d5 {[%clk 0:03:00]} 3. e5 {[%clk 0:02:54]}  c5 {[%clk 0:03:01]} 4. c3 {[%clk 0:02:55]}  Nc6 {[%clk 0:03:01]} 5. Nf3 {[%clk 0:02:55]}  Qb6 {[%clk 0:03:02]} 6. Bd3 {[%clk 0:02:55]}  Bd7 {[%clk 0:03:03]} 7. O-O {[%clk 0:02:55]}  cxd4 {[%clk 0:03:03]} 8. Re1 {[%clk 0:02:54]}  Nge7 {[%clk 0:03:03]} 9. h4 {[%clk 0:02:52]}  Rc8 {[%clk 0:02:56]} 10. h5 {[%clk 0:02:51]}  h6 {[%clk 0:02:56]} 11. a3 {[%clk 0:02:42]}  a5 {[%clk 0:02:55]} 12. b4 {[%clk 0:02:36]}  dxc3 {[%clk 0:02:54]} 13. Nxc3 {[%clk 0:02:27]}  axb4 {[%clk 0:02:43]} 14. Nb5 {[%clk 0:02:22]}  Nf5 {[%clk 0:02:15]} 15. a4 {[%clk 0:02:01]}  Bc5 {[%clk 0:02:13]} 16. Re2 {[%clk 0:01:28]}  Ncd4 {[%clk 0:02:12]} 17. Bxf5 {[%clk 0:01:19]}  Nxe2+ {[%clk 0:02:11]} 18. Qxe2 {[%clk 0:01:20]}  exf5 {[%clk 0:02:11]} 19. Nd6+ {[%clk 0:00:55]}  Bxd6 {[%clk 0:02:11]} 20. exd6+ {[%clk 0:00:56]}  Be6 {[%clk 0:02:11]} 21. Qe5 {[%clk 0:00:56]}  Kd7 {[%clk 0:02:04]} 22. Qxg7 {[%clk 0:00:45]}  Qxd6 {[%clk 0:02:04]} 23. Ne5+ {[%clk 0:00:42]}  Ke7 {[%clk 0:01:52]} 24. Ng6+ {[%clk 0:00:29]}  Kd7 {[%clk 0:01:52]} 25. Nxh8 {[%clk 0:00:27]}  Qf8 {[%clk 0:01:50]} 26. Qxh6 {[%clk 0:00:13]}  Qxh8 {[%clk 0:01:49]} 27. Qxh8 {[%clk 0:00:13]}  Rxh8 {[%clk 0:01:50]} 28. h6 {[%clk 0:00:13]}  d4 {[%clk 0:01:49]} 29. Bf4 {[%clk 0:00:12]}  b3 {[%clk 0:01:49]} 30. Rd1 {[%clk 0:00:11]}  Ke7 {[%clk 0:01:46]} 31. Rxd4 {[%clk 0:00:09]}  Bd7 {[%clk 0:01:45]} 32. Rb4 {[%clk 0:00:09]}  Be6 {[%clk 0:01:37]} 33. Rxb7+ {[%clk 0:00:09]}  Kf6 {[%clk 0:01:38]} 34. a5 {[%clk 0:00:09]}  Kg6 {[%clk 0:01:38]} 35. g3 {[%clk 0:00:09]}  Ra8 {[%clk 0:01:38]} 36. Rb5 {[%clk 0:00:08]}  Ra6 {[%clk 0:01:37]} 37. Bc7 {[%clk 0:00:07]}  Kxh6 {[%clk 0:01:36]} 38. Bb6 {[%clk 0:00:07]}  Kg6 {[%clk 0:01:36]} 39. Kf1 {[%clk 0:00:07]}  Bc4+ {[%clk 0:01:36]} 40. Ke1 {[%clk 0:00:08]}  Bxb5 {[%clk 0:01:37]} 41. Kd2 {[%clk 0:00:09]}  Bc4 {[%clk 0:01:37]} 42. Kc3 {[%clk 0:00:10]}  Be6 {[%clk 0:01:38]} 43. Kb2 {[%clk 0:00:10]}  Ra8 {[%clk 0:01:38]} 0-1


[Site "https://www.chess.com"]